lending/lending_fUSD_20250121
["ID","MTS","AMOUNT","RATE_DAILY","PERIOD"]
[349893693,1737481864336,-2083.72,0.00021095,2]
[349893694,1737481864350,-500.0,0.00021095,2]
[349893695,1737481864367,-1234.26,0.00021095,2]
[349893696,1737481864381,-850.27,0.00021095,2]
[349893697,1737481864395,-804.02,0.00021095,2]
[349893698,1737481864409,-638.37,0.00021095,2]
[349893699,1737481864425,-966.51,0.00021095,2]
[349893700,1737481864440,-534.09,0.00021095,2]
[349893701,1737481864454,-1807.38,0.00021095,2]
[349893702,1737481864468,-620.7,0.00021095,2]
[349893703,1737481864481,-1229.07,0.00021095,2]
[349893704,1737481864491,-983.11,0.00021095,2]
[349893705,1737481864501,-1007.18,0.00021095,2]
[349893706,1737481864511,-1154.97,0.00021095,2]
[349893707,1737481864521,-646.36,0.00021095,2]
[349893708,1737481864531,-500.0,0.00021095,2]
[349893709,1737481864541,-552.58,0.00021095,2]
[349893710,1737481864551,-500.0,0.00021095,2]
[349893711,1737481864561,-1758.1,0.00021095,2]
[349893712,1737481864571,-758.32,0.00021095,2]
[349893713,1737481864581,-571.87675332,0.00021095,2]
[349893714,1737481864591,-2087.54,0.00021095,2]
[349893715,1737481864600,-500.0,0.00021095,2]
[349893716,1737481864613,-552.04,0.00021095,2]
[349893717,1737481864622,-669.6,0.00021095,2]
[349893718,1737481864632,-500.0,0.00021095,2]
[349893719,1737481864642,-854.14,0.00021095,2]
[349893720,1737481864651,-814.49,0.00021095,2]
[349893721,1737481864663,-692.57,0.00021095,2]
[349893722,1737481864672,-2087.16,0.00021095,2]
[349893723,1737481864686,-863.83,0.00021095,2]
[349893724,1737481864696,-502.54,0.00021095,2]
[349893725,1737481864706,-777.16,0.00021095,2]
[349893726,1737481864716,-500.0,0.00021095,2]
[349893727,1737481864728,-892.77,0.00021095,2]
[349893728,1737481864737,-620.39,0.00021095,2]
[349893729,1737481864747,-1030.47,0.00021095,2]
[349893730,1737481864756,-1320.45,0.00021095,2]
[349893731,1737481864767,-573.28,0.00021095,2]
[349893732,1737481864776,-1860.97,0.00021095,2]
[349893733,1737481864786,-1428.91,0.00021095,2]
[349893734,1737481864796,-1602.47,0.00021095,2]
[349893735,1737481864805,-681.59,0.00021095,2]
[349893736,1737481864815,-992.99,0.00021095,2]
[349893737,1737481864825,-500.0,0.00021095,2]
[349893738,1737481864834,-554.72,0.00021095,2]
[349893739,1737481864843,-860.54,0.00021095,2]
[349893740,1737481864853,-951.01,0.00021095,2]
[349893741,1737481864865,-500.0,0.00021095,2]
[349893742,1737481864875,-939.91,0.00021095,2]
[349893743,1737481864884,-2768.13,0.00021095,2]
[349893744,1737481864894,-1656.07,0.00021095,2]
[349893745,1737481864904,-500.0,0.00021095,2]
[349893746,1737481864914,-630.78,0.00021095,2]
[349893747,1737481864924,-500.0,0.00021095,2]
[349893748,1737481864934,-955.19,0.00021095,2]
[349893749,1737481864944,-500.0,0.00021095,2]
[349893750,1737481864954,-1879.4,0.00021095,2]
[349893751,1737481864965,-1189.73,0.00021095,2]
[349893752,1737481864975,-1344.96,0.00021095,2]
[349893753,1737481864985,-1273.53,0.00021095,2]
[349893754,1737481865376,-611.0,0.00021095,2]
[349893755,1737481865395,-915.46,0.00021095,2]
[349893756,1737481865411,-500.0,0.00021095,2]
[349893757,1737481865422,-1205.37,0.00021095,2]
[349893758,1737481865432,-815.77,0.00021095,2]
[349893759,1737481865442,-500.0,0.00021095,2]
[349893760,1737481865452,-500.0,0.00021095,2]
[349893761,1737481865463,-1058.59,0.00021095,2]
[349893762,1737481865473,-903.51,0.00021095,2]
[349893763,1737481865484,-500.0,0.00021095,2]
[349893764,1737481865494,-976.3,0.00021095,2]
[349893765,1737481865504,-1120.5,0.00021095,2]
[349893766,1737481865514,-1815.36,0.00021095,2]
[349893767,1737481865524,-372.95355046,0.00021095,2]
[349893768,1737481865533,-2428.83,0.00021095,2]
[349893769,1737481865543,-2074.92,0.00021095,2]
[349893770,1737481865553,-326.01978257,0.00021095,2]
[349893771,1737481865563,-4234.98,0.00021095,2]
[349893772,1737481865573,-500.0,0.00021095,2]
[349893773,1737481865582,-1050.06,0.00021095,2]
[349893774,1737481865592,-758.4,0.00021095,2]
[349893775,1737481865602,-885.5,0.00021095,2]
[349893776,1737481865612,-969.51,0.00021095,2]
[349893777,1737481865622,-500.0,0.00021095,2]
[349893778,1737481865631,-500.0,0.00021095,2]
[349893779,1737481865641,-678.61,0.00021095,2]
[349893780,1737481865651,-1307.89,0.00021095,2]
[349893781,1737481865660,-500.0,0.00021095,2]
[349893782,1737481865670,-500.0,0.00021095,2]
[349893783,1737481865680,-655.48,0.00021095,2]
[349893784,1737481865692,-3654.26,0.00021095,2]
[349893785,1737481865702,-964.72,0.00021095,2]
[349893786,1737481865711,-1432.91,0.00021095,2]
[349893787,1737481865721,-500.0,0.00021095,2]
[349893788,1737481865732,-711.72,0.00021095,2]
[349893789,1737481865742,-1306.74,0.00021095,2]
[349893790,1737481865753,-500.0,0.00021095,2]
[349893791,1737481865762,-503.78,0.00021095,2]
[349893792,1737481865774,-1711.39,0.00021095,2]
[349893793,1737481865784,-715.38,0.00021095,2]
[349893794,1737481865794,-1372.82,0.00021095,2]
[349893795,1737481865804,-856.63,0.00021095,2]
[349893796,1737481865814,-578.87,0.00021095,2]
[349893797,1737481865823,-500.0,0.00021095,2]
[349893798,1737481865833,-500.0,0.00021095,2]
[349893799,1737481865843,-500.0,0.00021095,2]
[349893800,1737481865852,-500.0,0.00021095,2]
[349893801,1737481865864,-500.0,0.00021095,2]
[349893802,1737481865874,-1804.88,0.00021095,2]
[349893803,1737481865884,-1270.88,0.00021095,2]
[349893804,1737481865895,-1825.15,0.00021095,2]
[349893805,1737481865904,-644.97,0.00021095,2]
[349893806,1737481865914,-701.52,0.00021095,2]
[349893807,1737481865923,-500.0,0.00021095,2]
[349893808,1737481865933,-150.0,0.00021106,2]
[349893809,1737481865943,-1000.0,0.00021125,2]
[349893810,1737481865952,-679.41,0.00021136,2]
[349893811,1737481865962,-150.0,0.00021141,2]
[349893812,1737481865971,-802.04049213,0.00021142,2]
[349893813,1737481865981,-150.0,0.00021154,2]
[349893814,1737481865991,-211.87607278,0.00021176,2]
[349893815,1737481866002,-3133.87135329,0.00021178,2]
[349893816,1737481866012,-154.43,0.00021178,2]
[349893817,1737481866021,-437.71,0.00021178,2]
[349893818,1737481866031,-500.0,0.00021197,2]
[349893819,1737481866042,-1000.0,0.000212,2]
[349893820,1737481866052,-2287.35429341,0.000212,2]
[349893821,1737481866062,-3409.09926398,0.000212,2]
[349893822,1737481866072,-150.0,0.00021209,2]
[349893823,1737481866082,-150.979,0.00021235,2]
[349893824,1737481866091,-199.118,0.00021235,2]
[349893825,1737481866100,-266.882,0.00021235,2]
[349893826,1737481866110,-165.846,0.00021235,2]
[349893827,1737481866125,-150.0,0.00021235,2]
[349893828,1737481866134,-150.116,0.00021235,2]
[349893829,1737481866144,-150.0,0.00021235,2]
[349893830,1737481866153,-150.0,0.00021235,2]
[349893831,1737481866162,-150.0,0.00021235,2]
[349893832,1737481866171,-150.0,0.00021235,2]
[349893833,1737481866181,-150.0,0.00021249,2]
[349893834,1737481866191,-150.0,0.00021259,2]
[349893835,1737481866200,-11706.0,0.0002126,2]
[349893836,1737481866210,-1000.0,0.00021262,2]
[349893837,1737481866220,-1000.0,0.00021262,2]
[349893838,1737481866230,-1000.0,0.00021262,2]
[349893839,1737481866239,-1000.0,0.00021262,2]
[349893840,1737481866249,-1000.0,0.00021262,2]
[349893841,1737481866258,-1000.0,0.00021262,2]
[349893842,1737481866267,-1136.7765,0.00021262,2]
[349893843,1737481866277,-205.0,0.0002127,2]
[349893844,1737481866287,-207.0,0.0002127,2]
[349893845,1737481866296,-35600.90872897,0.00021272,2]
[349893846,1737481866306,-679.41,0.00021273,2]
[349893847,1737481866315,-150.0,0.00021273,2]
[349893848,1737481866325,-211.87607278,0.00021279,2]
[349893849,1737481866334,-5070.76774557,0.0002129,6]
[349893850,1737481866344,-150.0,0.00021298,2]
[349893851,1737481866355,-1101.88,0.00021299,2]
[349893852,1737481866366,-1101.88,0.00021299,2]
[349893853,1737481866376,-1101.88,0.00021299,2]
[349893854,1737481866386,-1101.88,0.00021299,2]
[349893855,1737481866395,-1101.88,0.00021299,2]
[349893856,1737481866405,-1101.88,0.00021299,2]
[349893857,1737481866415,-1102.07845676,0.00021299,2]
[349893858,1737481866424,-433366.29246016,0.000213,15]
[349893859,1737481866439,-18559.19514847,0.000213,15]
[349893860,1737481866450,-21176.0,0.000213,15]
[349893861,1737481885931,159.47,0.00010137,2]
[349893863,1737481961375,150.0,0.000125,2]
[349893864,1737482237969,22271.3588509,0.00024,120]
[349893865,1737482318597,173.84,0.00012329,2]
[349893867,1737482782602,152.28,0.00010137,2]
[349893871,1737482841289,2611.58736953,0.00019451,120]
[349893886,1737483031562,-426.27575759,0.00015,2]
[349893887,1737483031574,-123.72424241,0.00015,2]
[349893888,1737483031584,-472.67,0.00016099,2]
[349893889,1737483031593,-386.03913018,0.00017,2]
[349893890,1737483031604,-213.96086982,0.00017,2]
[349893891,1737483031616,-282.0743316,0.00017302,2]
[349893892,1737483031626,-526.17,0.00017515,2]
[349893893,1737483031635,-374.4,0.00017536,2]
[349893894,1737483031644,-164.65,0.00017559,2]
[349893895,1737483031654,-161.88,0.00017591,2]
[349893896,1737483031664,-295.68,0.00017618,2]
[349893897,1737483031674,-27.48312314,0.0001781,2]
[349893898,1737483031685,-2754.10569044,0.0001781,2]
[349893899,1737483031696,-1101.0,0.0001781,2]
[349893900,1737483031708,-1880.79730344,0.0001781,2]
[349893901,1737483031725,-625.91901,0.0001781,2]
[349893902,1737483031983,-988.74487298,0.0001781,2]
[349893903,1737483031994,-507.27,0.00017835,2]
[349893904,1737483032007,-250.0,0.00017853,2]
[349893905,1737483032017,-4100.17,0.00017855,2]
[349893906,1737483032027,-200.0,0.00017875,2]
[349893907,1737483032041,-250.0,0.00018041,2]
[349893908,1737483032052,-193.32,0.00018068,2]
[349893909,1737483032063,-216.92,0.00018114,2]
[349893910,1737483032074,-282.07433158,0.0001819,2]
[349893911,1737483032086,-300.0,0.00018295,2]
[349893912,1737483032096,-3218.55915881,0.00018296,2]
[349893913,1737483032110,-10155.02011675,0.00018296,2]
[349893914,1737483032137,-10526.42072444,0.00018296,2]
[349893915,1737483032147,-1000.0,0.00018296,2]
[349893916,1737483032157,-3346.79,0.00018311,2]
[349893917,1737483032167,-472.67,0.00018363,2]
[349893918,1737483032178,-539.6973282,0.00018367,2]
[349893919,1737483032187,-176.01,0.00018411,2]
[349893920,1737483032198,-1257.52,0.00018445,2]
[349893921,1737483032208,-2340.93,0.00018446,2]
[349893922,1737483032218,-350.69,0.00018467,2]
[349893923,1737483032228,-154.46,0.00018693,30]
[349893924,1737483032237,-250.0,0.00018783,2]
[349893925,1737483032247,-732.77,0.00018887,2]
[349893926,1737483032257,-187.07,0.00019068,2]
[349893927,1737483032267,-282.07433158,0.00019078,2]
[349893928,1737483032276,-2037.8867,0.00019078,2]
[349893929,1737483032286,-396.0576,0.00019078,2]
[349893930,1737483032295,-967.365,0.00019177,2]
[349893932,1737483032306,-703.38,0.00019177,2]
[349893934,1737483032315,-502.10641252,0.00019178,2]
[349893936,1737483032325,-500.0,0.00019178,2]
[349893938,1737483032334,-502.6822115,0.00019178,2]
[349893939,1737483032343,-500.0,0.00019178,2]
[349893941,1737483032353,-295.95387311,0.00019178,2]
[349893943,1737483032365,-500.0,0.00019178,2]
[349893945,1737483032375,-500.0,0.00019178,2]
[349893947,1737483032384,-501.62509503,0.00019178,2]
[349893950,1737483032395,-500.0,0.00019178,2]
[349893952,1737483032405,-509.59013913,0.00019178,2]
[349893953,1737483032414,-411.76972476,0.00019178,2]
[349893956,1737483032424,-500.0,0.00019178,7]
[349893957,1737483032434,-500.0,0.00019178,2]
[349893960,1737483032444,-515.74137141,0.00019178,2]
[349893961,1737483032453,-500.0,0.00019178,2]
[349893963,1737483032463,-500.0,0.00019178,2]
[349893966,1737483032472,-500.0,0.00019178,2]
[349893969,1737483032483,-500.0,0.00019178,2]
[349893973,1737483032495,-500.0,0.00019178,2]
[349893976,1737483032505,-500.0,0.00019178,2]
[349893979,1737483032515,-500.0,0.00019178,2]
[349893982,1737483032524,-1008.94,0.00019178,2]
[349893986,1737483032534,-500.0,0.00019178,2]
[349893990,1737483032544,-500.0,0.00019178,2]
[349893995,1737483032554,-500.0,0.00019178,2]
[349893997,1737483032564,-500.0,0.00019178,2]
[349894001,1737483032575,-500.0,0.00019178,2]
[349894004,1737483032585,-500.0,0.00019178,2]
[349894007,1737483032595,-500.0,0.00019178,2]
[349894009,1737483032605,-500.0,0.00019178,2]
[349894013,1737483032617,-500.0,0.00019178,2]
[349894016,1737483032629,-500.0,0.00019178,2]
[349894019,1737483032638,-500.0,0.00019178,2]
[349894022,1737483032650,-500.0,0.00019178,2]
[349894024,1737483032659,-500.0,0.00019178,2]
[349894027,1737483032669,-500.0,0.00019178,2]
[349894030,1737483032679,-500.0,0.00019178,2]
[349894032,1737483032689,-500.0,0.00019178,2]
[349894035,1737483032700,-500.0,0.00019178,2]
[349894037,1737483032710,-500.0,0.00019178,2]
[349894039,1737483032719,-500.0,0.00019178,2]
[349894040,1737483032728,-500.0,0.00019178,2]
[349894042,1737483032738,-500.0,0.00019178,2]
[349894044,1737483032747,-500.0,0.00019178,2]
[349894046,1737483032757,-500.0,0.00019178,2]
[349894049,1737483032768,-500.0,0.00019178,2]
[349894051,1737483032777,-500.0,0.00019178,2]
[349894052,1737483032786,-500.0,0.00019178,2]
[349894054,1737483032795,-500.0,0.00019178,2]
[349894056,1737483032805,-500.0,0.00019178,2]
[349894058,1737483032814,-642.37,0.00019178,2]
[349894060,1737483032824,-500.0,0.00019178,2]
[349894062,1737483032834,-500.0,0.00019178,2]
[349894064,1737483032843,-500.0,0.00019178,2]
[349894066,1737483032852,-500.0,0.00019178,2]
[349894068,1737483032863,-500.0,0.00019178,2]
[349894070,1737483032872,-500.0,0.00019178,2]
[349894072,1737483032881,-500.0,0.00019178,2]
[349894074,1737483032890,-500.0,0.00019178,2]
[349894076,1737483032899,-500.0,0.00019178,2]
[349894078,1737483032909,-501.69411849,0.00019178,2]
[349894080,1737483032918,-500.0,0.00019178,2]
[349894082,1737483032928,-500.0,0.00019178,2]
[349894084,1737483032938,-500.0,0.00019178,2]
[349894086,1737483032948,-500.0,0.00019178,2]
[349894088,1737483032958,-364.39880918,0.00019178,2]
[349894090,1737483032968,-500.0,0.00019178,2]
[349894092,1737483032979,-500.0,0.00019178,2]
[349894094,1737483032988,-500.0,0.00019178,2]
[349894096,1737483032998,-500.0,0.00019178,2]
[349894098,1737483033010,-500.0,0.00019178,2]
[349894100,1737483033019,-500.0,0.00019178,2]
[349894102,1737483033030,-500.0,0.00019178,2]
[349894104,1737483033041,-509.95830891,0.00019178,2]
[349894106,1737483033054,-500.0,0.00019178,2]
[349894108,1737483033064,-500.0,0.00019178,2]
[349894110,1737483033074,-605.96,0.00019178,2]
[349894112,1737483033085,-500.0,0.00019178,2]
[349894114,1737483033096,-500.0,0.00019178,2]
[349894116,1737483033106,-500.0,0.00019178,2]
[349894118,1737483033118,-500.0,0.00019178,2]
[349894120,1737483033130,-500.0,0.00019178,2]
[349894122,1737483033140,-500.0,0.00019178,2]
[349894124,1737483033150,-500.0,0.00019178,2]
[349894126,1737483033160,-500.0,0.00019178,2]
[349894128,1737483033169,-500.0,0.00019178,2]
[349894130,1737483033180,-500.0,0.00019178,2]
[349894132,1737483033190,-500.0,0.00019178,2]
[349894134,1737483033200,-514.10960007,0.00019178,2]
[349894136,1737483033210,-500.0,0.00019178,2]
[349894138,1737483033220,-500.0,0.00019178,2]
[349894139,1737483033230,-500.0,0.00019178,2]
[349894141,1737483033241,-554.91,0.00019178,2]
[349894143,1737483033252,-500.0,0.00019178,2]
[349894145,1737483033262,-500.0,0.00019178,2]
[349894147,1737483033274,-500.0,0.00019178,2]
[349894149,1737483033284,-500.0,0.00019178,2]
[349894151,1737483033295,-500.0,0.00019178,2]
[349894154,1737483033307,-500.0,0.00019178,2]
[349894155,1737483033319,-500.0,0.00019178,2]
[349894157,1737483033330,-500.0,0.00019178,2]
[349894159,1737483033341,-225.13587772,0.00019178,2]
[349894161,1737483033353,-581.44357324,0.00019178,2]
[349894163,1737483033369,-500.0,0.00019178,2]
[349894165,1737483033380,-500.0,0.00019178,2]
[349894168,1737483033393,-500.0,0.00019178,2]
[349894169,1737483033404,-500.0,0.00019178,2]
[349894171,1737483033416,-500.0,0.00019178,2]
[349894173,1737483033428,-500.0,0.00019178,2]
[349894175,1737483033440,-500.0,0.00019178,2]
[349894177,1737483033451,-500.0,0.00019178,2]
[349894179,1737483033463,-500.0,0.00019178,2]
[349894181,1737483033474,-500.0,0.00019178,2]
[349894184,1737483033485,-483.62672316,0.00019178,2]
[349894185,1737483033496,-500.0,0.00019178,2]
[349894187,1737483033506,-500.0,0.00019178,2]
[349894189,1737483033517,-500.0,0.00019178,2]
[349894191,1737483033527,-313.87160619,0.00019178,2]
[349894193,1737483033537,-500.0,0.00019178,2]
[349894195,1737483033547,-500.0,0.00019178,2]
[349894197,1737483033558,-500.0,0.00019178,2]
[349894199,1737483033570,-500.0,0.00019178,2]
[349894201,1737483033580,-500.0,0.00019178,2]
[349894203,1737483033593,-500.0,0.00019178,2]
[349894205,1737483033604,-500.0,0.00019178,2]
[349894207,1737483033622,-500.0,0.00019178,2]
[349894209,1737483033633,-500.0,0.00019178,2]
[349894229,1737483033871,-500.0,0.00019178,2]
[349894230,1737483033884,-500.0,0.00019178,2]
[349894231,1737483033896,-500.0,0.00019178,2]
[349894232,1737483033906,-500.0,0.00019178,2]
[349894233,1737483033918,-500.0,0.00019178,2]
[349894235,1737483033929,-500.0,0.00019178,2]
[349894237,1737483033940,-1000.0,0.00019178,2]
[349894239,1737483033950,-881.25,0.00019178,2]
[349894240,1737483033961,-500.0,0.00019178,2]
[349894242,1737483033971,-204.79437108,0.00019178,2]
[349894244,1737483033982,-500.0,0.00019178,2]
[349894246,1737483033993,-937.22,0.00019178,2]
[349894248,1737483034004,-500.0,0.00019178,2]
[349894250,1737483034015,-500.0,0.00019178,2]
[349894252,1737483034026,-871.21,0.00019178,2]
[349894254,1737483034038,-500.0,0.00019178,2]
[349894256,1737483034052,-500.0,0.00019178,2]
[349894259,1737483034063,-500.0,0.00019178,2]
[349894261,1737483034074,-500.0,0.00019178,2]
[349894263,1737483034088,-781.13,0.00019178,2]
[349894265,1737483034101,-500.0,0.00019178,2]
[349894266,1737483034114,-500.0,0.00019178,2]
[349894268,1737483034129,-500.0,0.00019178,2]
[349894270,1737483034140,-500.0,0.00019178,2]
[349894271,1737483034154,-500.0,0.00019178,2]
[349894273,1737483034166,-500.0,0.00019178,2]
[349894275,1737483034179,-1950.82736064,0.00019188,2]
[349894277,1737483034191,-159.47,0.0001921,2]
[349894279,1737483034201,-32587.62282758,0.00019256,2]
[349894281,1737483034253,-23550.37717242,0.00019256,2]
[349894282,1737483034264,-200.0,0.00019315,2]
[349894283,1737483034275,-1000.0,0.00019351,2]
[349894284,1737483034287,-383.8441535,0.00019352,2]
[349894285,1737483034299,-5000.0,0.00019352,2]
[349894286,1737483034309,-1002.0,0.000194,2]
[349894287,1737483034321,-309.67454465,0.000194,2]
[349894288,1737483034349,-690.32545535,0.000194,2]
[349894289,1737483034360,-1950.82736059,0.00019434,2]
[349894290,1737483034373,-216.12532814,0.00019449,2]
[349894291,1737483034384,-500.0,0.00019449,2]
[349894292,1737483034394,-643.35,0.0001945,2]
[349894293,1737483034404,-284.12987343,0.0001945,2]
[349894295,1737483037678,-1287.91,0.00017573,2]
[349894296,1737483037687,-500.0,0.00019449,2]
[349894297,1737483037696,-1145.04012657,0.0001945,2]
[349894298,1737483037705,-397.965417,0.0001945,2]
[349894299,1737483037714,-832.94,0.0001945,2]
[349894300,1737483037723,-500.0,0.0001945,2]
[349894301,1737483037732,-817.29,0.0001945,2]
[349894302,1737483037742,-159.772266,0.0001945,2]
[349894303,1737483037752,-1391.94,0.0001945,2]
[349894304,1737483037761,-500.0,0.0001945,2]
[349894305,1737483037771,-607.54,0.0001945,2]
[349894306,1737483037780,-1496.59,0.0001945,2]
[349894307,1737483037790,-517.97516,0.0001945,2]
[349894308,1737483037800,-500.0,0.0001945,2]
[349894309,1737483037810,-735.63,0.0001945,2]
[349894310,1737483037819,-500.0,0.0001945,2]
[349894311,1737483037829,-589.48,0.0001945,2]
[349894312,1737483037839,-807.53,0.0001945,2]
[349894313,1737483037848,-612.83,0.0001945,2]
[349894314,1737483037857,-1286.11,0.0001945,2]
[349894315,1737483037870,-1633.24,0.0001945,2]
[349894316,1737483037880,-817.72,0.0001945,2]
[349894317,1737483037891,-500.0,0.0001945,2]
[349894318,1737483037903,-1904.28,0.0001945,2]
[349894319,1737483037916,-500.0,0.0001945,2]
[349894320,1737483037929,-2362.47,0.0001945,2]
[349894321,1737483037940,-1323.28,0.0001945,2]
[349894323,1737483037951,-756.05,0.0001945,2]
[349894325,1737483037963,-2178.53,0.0001945,2]
[349894326,1737483037977,-1033.81,0.0001945,2]
[349894327,1737483037989,-1169.81,0.0001945,2]
[349894328,1737483038002,-753.19,0.0001945,2]
[349894330,1737483038014,-500.0,0.0001945,2]
[349894333,1737483038027,-500.0,0.0001945,2]
[349894335,1737483038040,-1926.81,0.0001945,2]
[349894336,1737483038053,-830.69,0.0001945,2]
[349894338,1737483038066,-898.38,0.0001945,2]
[349894339,1737483038078,-837.96,0.0001945,2]
[349894340,1737483038090,-3361.17,0.0001945,2]
[349894342,1737483038103,-1737.93,0.0001945,2]
[349894343,1737483038117,-1522.51,0.0001945,2]
[349894344,1737483038131,-1030.59,0.0001945,2]
[349894345,1737483038144,-691.72,0.0001945,2]
[349894346,1737483038156,-1190.5,0.0001945,2]
[349894347,1737483038168,-500.0,0.0001945,2]
[349894348,1737483038181,-533.52,0.0001945,2]
[349894349,1737483038194,-500.0,0.0001945,2]
[349894350,1737483038206,-1134.08,0.0001945,2]
[349894351,1737483038218,-640.7,0.0001945,2]
[349894352,1737483038231,-1408.54,0.0001945,2]
[349894353,1737483038243,-731.78,0.0001945,2]
[349894354,1737483038256,-500.0,0.0001945,2]
[349894355,1737483038268,-1382.62,0.0001945,2]
[349894356,1737483038279,-1066.84,0.0001945,2]
[349894357,1737483038291,-550.98,0.0001945,2]
[349894358,1737483038303,-500.0,0.0001945,2]
[349894359,1737483038315,-1625.15,0.0001945,2]
[349894360,1737483038327,-1423.38,0.0001945,2]
[349894361,1737483038338,-500.0,0.00019451,2]
[349894362,1737483038350,-500.0,0.00019451,2]
[349894363,1737483038362,-500.0,0.00019451,2]
[349894364,1737483038377,-500.0,0.00019451,2]
[349894365,1737483038388,-500.0,0.00019451,2]
[349894366,1737483038399,-350.80832799,0.00019451,2]
[349894367,1737483038412,-500.0,0.00019451,2]
[349894368,1737483038427,-500.0,0.00019451,2]
[349894369,1737483038437,-516.77,0.00019451,2]
[349894370,1737483038447,-500.0,0.00019451,2]
[349894371,1737483038458,-500.0,0.00019451,2]
[349894372,1737483038469,-500.0,0.00019451,2]
[349894373,1737483038481,-500.0,0.00019451,2]
[349894374,1737483038494,-455.28739896,0.00019451,2]
[349894375,1737483038506,-500.0,0.00019451,2]
[349894376,1737483038518,-500.0,0.00019451,2]
[349894377,1737483038529,-500.0,0.00019451,2]
[349894378,1737483038540,-515.930378,0.00019451,2]
[349894379,1737483038552,-500.0,0.00019451,2]
[349894380,1737483038564,-500.0,0.00019451,2]
[349894381,1737483038575,-500.0,0.00019451,2]
[349894382,1737483038587,-500.0,0.00019451,2]
[349894383,1737483038601,-500.0,0.00019451,2]
[349894384,1737483038613,-502.67242837,0.00019451,2]
[349894385,1737483038626,-500.0,0.00019451,2]
[349894386,1737483038639,-519.1,0.00019451,2]
[349894387,1737483038650,-500.0,0.00019451,2]
[349894388,1737483038662,-500.0,0.00019451,2]
[349894389,1737483038674,-500.0,0.00019451,2]
[349894390,1737483038686,-500.0,0.00019451,2]
[349894391,1737483038697,-500.0,0.00019451,2]
[349894392,1737483038709,-500.0,0.00019451,2]
[349894393,1737483038721,-500.0,0.00019451,2]
[349894394,1737483038732,-500.0,0.00019451,2]
[349894395,1737483038743,-500.0,0.00019451,2]
[349894396,1737483038755,-500.0,0.00019451,2]
[349894397,1737483038767,-500.0,0.00019451,2]
[349894398,1737483038778,-500.0,0.00019451,2]
[349894399,1737483038789,-500.0,0.00019451,2]
[349894400,1737483038800,-500.0,0.00019451,2]
[349894401,1737483038811,-500.0,0.00019451,2]
[349894402,1737483038822,-500.0,0.00019451,2]
[349894403,1737483038833,-500.0,0.00019451,2]
[349894404,1737483038845,-500.0,0.00019451,2]
[349894405,1737483038857,-500.0,0.00019451,2]
[349894406,1737483038871,-500.0,0.00019451,2]
[349894407,1737483038882,-500.0,0.00019451,2]
[349894408,1737483038893,-500.0,0.00019451,2]
[349894409,1737483038905,-508.52,0.00019451,2]
[349894410,1737483038916,-500.0,0.00019451,2]
[349894411,1737483038927,-500.0,0.00019451,2]
[349894412,1737483038939,-500.0,0.00019451,2]
[349894413,1737483038951,-500.0,0.00019451,2]